[Event "January 9 Late 2024"]
[Site "https://www.chess.com"]
[Date "2024.01.10"]
[Round "7"]
[White "Haack, Kevin"]
[Black "Soderstrom, Adrian"]
[Result "0-1"]
[Board "139"]
[TimeControl "180+1"]
[WhiteFideId "16228715"]
[BlackFideId "1745786"]
[WhiteElo "2297"]
[BlackElo "2499"]
[WhiteTeam "GER"]
[BlackTeam "SWE"]
[WhiteClock "0:00:03"]
[BlackClock "0:00:26"]

1. e4 {[%clk 0:03:00]}  e6 {[%clk 0:02:58]} 2. d4 {[%clk 0:02:59]}  d5 {[%clk 0:02:57]} 3. e5 {[%clk 0:02:59]}  c5 {[%clk 0:02:57]} 4. c3 {[%clk 0:02:58]}  Nc6 {[%clk 0:02:57]} 5. Nf3 {[%clk 0:02:56]}  Qb6 {[%clk 0:02:56]} 6. Bd3 {[%clk 0:02:48]}  Nh6 {[%clk 0:02:50]} 7. O-O {[%clk 0:02:40]}  cxd4 {[%clk 0:02:50]} 8. Re1 {[%clk 0:02:36]}  Nf5 {[%clk 0:02:36]} 9. Bxf5 {[%clk 0:02:34]}  exf5 {[%clk 0:02:37]} 10. cxd4 {[%clk 0:02:25]}  h6 {[%clk 0:02:36]} 11. Nc3 {[%clk 0:02:14]}  Be6 {[%clk 0:02:35]} 12. Qd3 {[%clk 0:02:01]}  Be7 {[%clk 0:02:22]} 13. a3 {[%clk 0:01:43]}  g5 {[%clk 0:02:20]} 14. b4 {[%clk 0:01:42]}  g4 {[%clk 0:02:19]} 15. Nd2 {[%clk 0:01:40]}  Qxd4 {[%clk 0:02:18]} 16. Qc2 {[%clk 0:01:26]}  Rc8 {[%clk 0:02:17]} 17. Bb2 {[%clk 0:01:16]}  Qb6 {[%clk 0:02:14]} 18. Qd3 {[%clk 0:01:08]}  d4 {[%clk 0:02:06]} 19. Na4 {[%clk 0:01:09]}  Qd8 {[%clk 0:02:02]} 20. Rac1 {[%clk 0:01:08]}  Bg5 {[%clk 0:01:53]} 21. Nc5 {[%clk 0:01:00]}  b6 {[%clk 0:01:46]} 22. Nb7 {[%clk 0:01:01]}  Qe7 {[%clk 0:01:14]} 23. Nd6+ {[%clk 0:01:00]}  Kd7 {[%clk 0:01:15]} 24. b5 {[%clk 0:00:52]}  Nxe5 {[%clk 0:01:13]} 25. Qxd4 {[%clk 0:00:33]}  Qxd6 {[%clk 0:01:05]} 26. Qxd6+ {[%clk 0:00:33]}  Kxd6 {[%clk 0:01:06]} 27. Bxe5+ {[%clk 0:00:34]}  Kd7 {[%clk 0:01:06]} 28. Bxh8 {[%clk 0:00:33]}  Rxh8 {[%clk 0:01:00]} 29. Nc4 {[%clk 0:00:34]}  Bxc1 {[%clk 0:00:57]} 30. Rxc1 {[%clk 0:00:34]}  Ke7 {[%clk 0:00:52]} 31. Ne5 {[%clk 0:00:34]}  Kf6 {[%clk 0:00:51]} 32. Nc6 {[%clk 0:00:33]}  Rc8 {[%clk 0:00:51]} 33. Rd1 {[%clk 0:00:33]}  a5 {[%clk 0:00:49]} 34. Rd6 {[%clk 0:00:26]}  f4 {[%clk 0:00:47]} 35. f3 {[%clk 0:00:24]}  h5 {[%clk 0:00:47]} 36. Kf2 {[%clk 0:00:24]}  Kg5 {[%clk 0:00:42]} 37. Ke2 {[%clk 0:00:22]}  Bc4+ {[%clk 0:00:42]} 38. Kd2 {[%clk 0:00:21]}  Bxb5 {[%clk 0:00:42]} 39. Rd5+ {[%clk 0:00:14]}  f5 {[%clk 0:00:42]} 40. Na7 {[%clk 0:00:14]}  Bc4 {[%clk 0:00:40]} 41. Rd6 {[%clk 0:00:11]}  Rc5 {[%clk 0:00:39]} 42. Nc6 {[%clk 0:00:11]}  Rd5+ {[%clk 0:00:38]} 43. Rxd5 {[%clk 0:00:11]}  Bxd5 {[%clk 0:00:39]} 44. Ne7 {[%clk 0:00:10]}  Bb7 {[%clk 0:00:31]} 45. Ke2 {[%clk 0:00:10]}  h4 {[%clk 0:00:30]} 46. Kf2 {[%clk 0:00:06]}  g3+ {[%clk 0:00:22]} 47. Kg1 {[%clk 0:00:03]}  Kf6 {[%clk 0:00:21]} 48. Ng8+ {[%clk 0:00:03]}  Ke5 {[%clk 0:00:22]} 49. Ne7 {[%clk 0:00:01]}  b5 {[%clk 0:00:22]} 50. hxg3 {[%clk 0:00:01]}  fxg3 {[%clk 0:00:22]} 51. Kf1 {[%clk 0:00:02]}  Kf6 {[%clk 0:00:21]} 52. Ng8+ {[%clk 0:00:02]}  Kg5 {[%clk 0:00:21]} 53. Ne7 {[%clk 0:00:02]}  b4 {[%clk 0:00:22]} 54. axb4 {[%clk 0:00:02]}  axb4 {[%clk 0:00:22]} 55. Ke2 {[%clk 0:00:02]}  b3 {[%clk 0:00:22]} 56. Kd2 {[%clk 0:00:02]}  Bxf3 {[%clk 0:00:22]} 57. gxf3 {[%clk 0:00:02]}  g2 {[%clk 0:00:23]} 58. f4+ {[%clk 0:00:01]}  Kxf4 {[%clk 0:00:24]} 59. Nd5+ {[%clk 0:00:02]}  Kg3 {[%clk 0:00:24]} 60. Nc3 {[%clk 0:00:01]}  g1=Q {[%clk 0:00:22]} 61. Ne2+ {[%clk 0:00:01]}  Kf2 {[%clk 0:00:23]} 62. Nxg1 {[%clk 0:00:02]}  Kxg1 {[%clk 0:00:23]} 63. Kc3 {[%clk 0:00:03]}  h3 {[%clk 0:00:24]} 64. Kxb3 {[%clk 0:00:03]}  h2 {[%clk 0:00:25]} 65. Kc3 {[%clk 0:00:03]}  h1=Q {[%clk 0:00:26]} 0-1

[Event "January 9 Late 2024"]
[Site "https://www.chess.com"]
[Date "2024.01.09"]
[Round "7"]
[White "Kostiukov, Alexandr"]
[Black "Uz, Kagan"]
[Result "1/2-1/2"]
[Board "140"]
[TimeControl "180+1"]
[WhiteFideId "14108100"]
[BlackFideId "30986680"]
[WhiteElo "2296"]
[BlackElo "2492"]
[WhiteTeam "UKR"]
[BlackTeam "USA"]
[WhiteClock "0:00:09"]
[BlackClock "0:00:08"]

1. g3 {[%clk 0:02:52]}  e5 {[%clk 0:02:15]} 2. c4 {[%clk 0:02:50]}  Nf6 {[%clk 0:02:08]} 3. Bg2 {[%clk 0:02:50]}  Nc6 {[%clk 0:02:04]} 4. Nc3 {[%clk 0:02:49]}  Bc5 {[%clk 0:01:54]} 5. e3 {[%clk 0:02:49]}  h5 {[%clk 0:01:53]} 6. h4 {[%clk 0:02:46]}  d6 {[%clk 0:01:53]} 7. Nd5 {[%clk 0:02:39]}  Nxd5 {[%clk 0:01:30]} 8. cxd5 {[%clk 0:02:38]}  Nb4 {[%clk 0:01:31]} 9. d4 {[%clk 0:02:36]}  exd4 {[%clk 0:01:23]} 10. exd4 {[%clk 0:02:37]}  Bf5 {[%clk 0:01:18]} 11. dxc5 {[%clk 0:02:16]}  Nc2+ {[%clk 0:01:14]} 12. Kf1 {[%clk 0:02:14]}  Nxa1 {[%clk 0:01:13]} 13. cxd6 {[%clk 0:01:26]}  O-O {[%clk 0:00:46]} 14. dxc7 {[%clk 0:01:13]}  Qxc7 {[%clk 0:00:46]} 15. Ne2 {[%clk 0:01:13]}  Rfe8 {[%clk 0:00:25]} 16. Kg1 {[%clk 0:01:10]}  Rxe2 {[%clk 0:00:23]} 17. Qxe2 {[%clk 0:01:05]}  Nc2 {[%clk 0:00:11]} 18. Bf4 {[%clk 0:01:01]}  Qb6 {[%clk 0:00:10]} 19. Kh2 {[%clk 0:00:56]}  Nd4 {[%clk 0:00:09]} 20. Qxh5 {[%clk 0:00:52]}  Bg6 {[%clk 0:00:08]} 21. Qe5 {[%clk 0:00:45]}  Qxb2 {[%clk 0:00:07]} 22. Rd1 {[%clk 0:00:24]}  Nf3+ {[%clk 0:00:03]} 23. Bxf3 {[%clk 0:00:22]}  Qxf2+ {[%clk 0:00:04]} 24. Bg2 {[%clk 0:00:19]}  Qxa2 {[%clk 0:00:03]} 25. Rd2 {[%clk 0:00:17]}  Qa5 {[%clk 0:00:02]} 26. d6 {[%clk 0:00:17]}  Qd8 {[%clk 0:00:03]} 27. d7 {[%clk 0:00:17]}  f6 {[%clk 0:00:02]} 28. Qe6+ {[%clk 0:00:17]}  Bf7 {[%clk 0:00:03]} 29. Qd6 {[%clk 0:00:17]}  a5 {[%clk 0:00:02]} 30. Bd5 {[%clk 0:00:16]}  b5 {[%clk 0:00:02]} 31. Bxf7+ {[%clk 0:00:14]}  Kxf7 {[%clk 0:00:03]} 32. Qd5+ {[%clk 0:00:13]}  Kg6 {[%clk 0:00:03]} 33. Qxa8 {[%clk 0:00:13]}  Qxa8 {[%clk 0:00:03]} 34. d8=Q {[%clk 0:00:14]}  Qxd8 {[%clk 0:00:03]} 35. Rxd8 {[%clk 0:00:14]}  b4 {[%clk 0:00:04]} 36. Ra8 {[%clk 0:00:14]}  b3 {[%clk 0:00:05]} 37. Rxa5 {[%clk 0:00:14]}  b2 {[%clk 0:00:06]} 38. Rb5 {[%clk 0:00:14]}  b1=Q {[%clk 0:00:05]} 39. Rxb1 {[%clk 0:00:14]}  Kf5 {[%clk 0:00:06]} 40. Rb5+ {[%clk 0:00:13]}  Kg4 {[%clk 0:00:06]} 41. h5 {[%clk 0:00:12]}  Kf3 {[%clk 0:00:04]} 42. Kh3 {[%clk 0:00:12]}  f5 {[%clk 0:00:03]} 43. Kh4 {[%clk 0:00:11]}  Kg2 {[%clk 0:00:03]} 44. Kg5 {[%clk 0:00:12]}  Kh3 {[%clk 0:00:03]} 45. Kg6 {[%clk 0:00:13]}  Kg4 {[%clk 0:00:03]} 46. Kxg7 {[%clk 0:00:12]}  Kh3 {[%clk 0:00:04]} 47. h6 {[%clk 0:00:12]}  Kg4 {[%clk 0:00:05]} 48. h7 {[%clk 0:00:12]}  Kh3 {[%clk 0:00:06]} 49. Rxf5 {[%clk 0:00:11]}  Kg4 {[%clk 0:00:07]} 50. Rg5+ {[%clk 0:00:11]}  Kf3 {[%clk 0:00:07]} 51. h8=Q {[%clk 0:00:11]}  Ke4 {[%clk 0:00:07]} 52. Qe8+ {[%clk 0:00:12]}  Kf3 {[%clk 0:00:07]} 53. Bc7 {[%clk 0:00:10]}  Kg2 {[%clk 0:00:07]} 54. Kh6 {[%clk 0:00:10]}  Kh3 {[%clk 0:00:08]} 55. Rh5+ {[%clk 0:00:09]}  Kg2 {[%clk 0:00:08]} 56. g4 {[%clk 0:00:09]}  Kf3 {[%clk 0:00:08]} 57. g5 {[%clk 0:00:10]}  Kg4 {[%clk 0:00:08]} 58. Qf8 {[%clk 0:00:09]} 1/2-1/2

[Event "January 9 Late 2024"]
[Site "https://www.chess.com"]
[Date "2024.01.09"]
[Round "7"]
[White "Eggleston, Thomas A"]
[Black "Mizzi, Jack"]
[Result "0-1"]
[Board "141"]
[TimeControl "180+1"]
[WhiteFideId "412139"]
[BlackFideId "5602521"]
[WhiteElo "2261"]
[BlackElo "2487"]
[WhiteTeam "ENG"]
[BlackTeam "MLT"]
[WhiteClock "0:00:02"]
[BlackClock "0:00:03"]

1. e4 {[%clk 0:03:00]}  c6 {[%clk 0:03:00]} 2. d4 {[%clk 0:02:58]}  d5 {[%clk 0:03:00]} 3. e5 {[%clk 0:02:58]}  Bf5 {[%clk 0:03:00]} 4. Nd2 {[%clk 0:02:56]}  e6 {[%clk 0:03:00]} 5. Nb3 {[%clk 0:02:55]}  Nd7 {[%clk 0:02:59]} 6. Bd3 {[%clk 0:02:55]}  Ne7 {[%clk 0:02:59]} 7. Ne2 {[%clk 0:02:51]}  Bxd3 {[%clk 0:02:50]} 8. Qxd3 {[%clk 0:02:51]}  a5 {[%clk 0:02:48]} 9. a4 {[%clk 0:02:40]}  Qc7 {[%clk 0:02:46]} 10. O-O {[%clk 0:02:37]}  c5 {[%clk 0:02:40]} 11. c4 {[%clk 0:02:33]}  cxd4 {[%clk 0:02:36]} 12. cxd5 {[%clk 0:02:33]}  Nxe5 {[%clk 0:02:29]} 13. Qb5+ {[%clk 0:02:20]}  Qd7 {[%clk 0:02:21]} 14. dxe6 {[%clk 0:02:17]}  fxe6 {[%clk 0:02:16]} 15. Nbxd4 {[%clk 0:02:11]}  Qxb5 {[%clk 0:02:13]} 16. axb5 {[%clk 0:02:05]}  Kf7 {[%clk 0:02:11]} 17. Nf4 {[%clk 0:02:04]}  b6 {[%clk 0:02:00]} 18. Ndxe6 {[%clk 0:01:50]}  h6 {[%clk 0:01:51]} 19. Nc7 {[%clk 0:01:40]}  Rc8 {[%clk 0:01:45]} 20. Nfe6 {[%clk 0:01:40]}  Nf5 {[%clk 0:01:40]} 21. f4 {[%clk 0:01:29]}  Nd3 {[%clk 0:01:37]} 22. g4 {[%clk 0:01:25]}  Nh4 {[%clk 0:00:59]} 23. Be3 {[%clk 0:01:04]}  Nc5 {[%clk 0:00:45]} 24. Nxf8 {[%clk 0:00:57]}  Rxc7 {[%clk 0:00:40]} 25. f5 {[%clk 0:00:36]}  Rxf8 {[%clk 0:00:37]} 26. Rad1 {[%clk 0:00:31]}  Re7 {[%clk 0:00:32]} 27. Bf2 {[%clk 0:00:25]}  Nf3+ {[%clk 0:00:29]} 28. Kg2 {[%clk 0:00:25]}  Ne5 {[%clk 0:00:29]} 29. Rd6 {[%clk 0:00:24]}  Nxg4 {[%clk 0:00:24]} 30. Bg1 {[%clk 0:00:22]}  Nd7 {[%clk 0:00:16]} 31. Rfd1 {[%clk 0:00:17]}  Nge5 {[%clk 0:00:15]} 32. R6d5 {[%clk 0:00:13]}  Rc8 {[%clk 0:00:14]} 33. Bd4 {[%clk 0:00:10]}  Rc2+ {[%clk 0:00:09]} 34. Kh3 {[%clk 0:00:10]}  Nf3 {[%clk 0:00:08]} 35. Bg1 {[%clk 0:00:06]}  Ng5+ {[%clk 0:00:07]} 36. Kg4 {[%clk 0:00:05]}  Nf6+ {[%clk 0:00:07]} 37. Kg3 {[%clk 0:00:04]}  Nxd5 {[%clk 0:00:05]} 38. Rxd5 {[%clk 0:00:05]}  Rxb2 {[%clk 0:00:03]} 39. Rd6 {[%clk 0:00:05]}  Rxb5 {[%clk 0:00:03]} 40. Rc6 {[%clk 0:00:05]}  Rxf5 {[%clk 0:00:03]} 41. Bd4 {[%clk 0:00:04]}  Rf3+ {[%clk 0:00:02]} 42. Kg2 {[%clk 0:00:04]}  Re2+ {[%clk 0:00:03]} 43. Kg1 {[%clk 0:00:04]}  Nh3+ {[%clk 0:00:03]} 44. Kh1 {[%clk 0:00:04]}  Rf1+ {[%clk 0:00:03]} 45. Bg1 {[%clk 0:00:02]}  Rxg1# {[%clk 0:00:03]} 0-1

[Event "January 9 Late 2024"]
[Site "https://www.chess.com"]
[Date "2024.01.09"]
[Round "7"]
[White "Rees, Ioan"]
[Black "Harrington, Steve"]
[Result "1-0"]
[Board "153"]
[TimeControl "180+1"]
[WhiteFideId "1801236"]
[BlackFideId "2038730"]
[WhiteElo "2387"]
[BlackElo "2149"]
[WhiteTeam "WLS"]
[BlackTeam "USA"]
[WhiteClock "0:00:57"]
[BlackClock "0:00:06"]

1. Nf3 {[%clk 0:02:54]}  Nc6 {[%clk 0:02:59]} 2. e4 {[%clk 0:02:53]}  d5 {[%clk 0:02:53]} 3. exd5 {[%clk 0:02:54]}  Qxd5 {[%clk 0:02:53]} 4. Nc3 {[%clk 0:02:55]}  Qd6 {[%clk 0:02:53]} 5. d4 {[%clk 0:02:53]}  Bg4 {[%clk 0:02:53]} 6. Bb5 {[%clk 0:02:49]}  e6 {[%clk 0:02:51]} 7. h3 {[%clk 0:02:44]}  Bxf3 {[%clk 0:02:46]} 8. Qxf3 {[%clk 0:02:45]}  Nf6 {[%clk 0:02:37]} 9. Bf4 {[%clk 0:02:40]}  Qd7 {[%clk 0:02:32]} 10. O-O-O {[%clk 0:02:40]}  O-O-O {[%clk 0:02:04]} 11. a3 {[%clk 0:02:14]}  Nd5 {[%clk 0:01:58]} 12. Nxd5 {[%clk 0:02:11]}  Qxd5 {[%clk 0:01:58]} 13. Qxd5 {[%clk 0:02:07]}  exd5 {[%clk 0:01:51]} 14. c3 {[%clk 0:02:02]}  Bd6 {[%clk 0:01:46]} 15. Be3 {[%clk 0:01:53]}  a6 {[%clk 0:01:34]} 16. Bd3 {[%clk 0:01:51]}  g6 {[%clk 0:01:27]} 17. h4 {[%clk 0:01:49]}  h5 {[%clk 0:01:24]} 18. Rde1 {[%clk 0:01:45]}  Rde8 {[%clk 0:01:25]} 19. Kc2 {[%clk 0:01:41]}  Kd7 {[%clk 0:01:24]} 20. b4 {[%clk 0:01:40]}  b5 {[%clk 0:01:24]} 21. Bg5 {[%clk 0:01:37]}  Be7 {[%clk 0:01:14]} 22. Bd2 {[%clk 0:01:32]}  Bd6 {[%clk 0:01:10]} 23. a4 {[%clk 0:01:31]}  Na7 {[%clk 0:00:53]} 24. axb5 {[%clk 0:01:30]}  Nxb5 {[%clk 0:00:49]} 25. Rxe8 {[%clk 0:01:21]}  Rxe8 {[%clk 0:00:38]} 26. Ra1 {[%clk 0:01:21]}  c6 {[%clk 0:00:25]} 27. Rxa6 {[%clk 0:01:19]}  Nc7 {[%clk 0:00:26]} 28. Ra7 {[%clk 0:01:15]}  Kc8 {[%clk 0:00:24]} 29. Ra1 {[%clk 0:01:09]}  Kb7 {[%clk 0:00:21]} 30. Re1 {[%clk 0:01:09]}  Ne6 {[%clk 0:00:20]} 31. g3 {[%clk 0:01:08]}  Ra8 {[%clk 0:00:20]} 32. Kb3 {[%clk 0:01:05]}  Kc7 {[%clk 0:00:18]} 33. Bxg6 {[%clk 0:01:05]}  Nxd4+ {[%clk 0:00:17]} 34. cxd4 {[%clk 0:01:05]}  fxg6 {[%clk 0:00:17]} 35. Re6 {[%clk 0:01:04]}  Rb8 {[%clk 0:00:17]} 36. Rxg6 {[%clk 0:01:03]}  Rf8 {[%clk 0:00:16]} 37. Be3 {[%clk 0:01:00]}  Kb6 {[%clk 0:00:16]} 38. Rxd6 {[%clk 0:01:00]}  Ra8 {[%clk 0:00:09]} 39. Rh6 {[%clk 0:00:59]}  Ra1 {[%clk 0:00:09]} 40. Rxh5 {[%clk 0:00:58]}  Rb1+ {[%clk 0:00:09]} 41. Kc3 {[%clk 0:00:58]}  Rc1+ {[%clk 0:00:06]} 42. Bxc1 {[%clk 0:00:57]} 1-0

[Event "January 9 Late 2024"]
[Site "https://www.chess.com"]
[Date "2024.01.09"]
[Round "7"]
[White "Aung Thant Zin"]
[Black "Prieto Aranguren, Alain"]
[Result "0-1"]
[Board "154"]
[TimeControl "180+1"]
[WhiteFideId "13000063"]
[BlackFideId "2268906"]
[WhiteElo "2151"]
[BlackElo "2381"]
[WhiteTeam "MYA"]
[BlackTeam "ESP"]
[WhiteClock "0:00:09"]
[BlackClock "0:01:11"]

1. e4 {[%clk 0:02:54]}  c6 {[%clk 0:02:58]} 2. d4 {[%clk 0:02:54]}  d5 {[%clk 0:02:58]} 3. Nc3 {[%clk 0:02:54]}  a6 {[%clk 0:02:57]} 4. Nf3 {[%clk 0:02:54]}  Bg4 {[%clk 0:02:54]} 5. Be2 {[%clk 0:02:53]}  e6 {[%clk 0:02:52]} 6. Be3 {[%clk 0:02:52]}  Nf6 {[%clk 0:02:52]} 7. e5 {[%clk 0:02:50]}  Nfd7 {[%clk 0:02:52]} 8. Nb1 {[%clk 0:02:48]}  c5 {[%clk 0:02:51]} 9. c3 {[%clk 0:02:48]}  Nc6 {[%clk 0:02:51]} 10. Nbd2 {[%clk 0:02:46]}  Qb6 {[%clk 0:02:50]} 11. O-O {[%clk 0:02:36]}  cxd4 {[%clk 0:02:48]} 12. cxd4 {[%clk 0:02:34]}  Rc8 {[%clk 0:02:44]} 13. Rc1 {[%clk 0:02:29]}  Be7 {[%clk 0:02:43]} 14. a3 {[%clk 0:02:15]}  O-O {[%clk 0:02:42]} 15. b4 {[%clk 0:02:14]}  a5 {[%clk 0:02:42]} 16. b5 {[%clk 0:02:14]}  Na7 {[%clk 0:02:39]} 17. Qb3 {[%clk 0:02:06]}  Rxc1 {[%clk 0:02:30]} 18. Rxc1 {[%clk 0:02:03]}  Rc8 {[%clk 0:02:30]} 19. Rxc8+ {[%clk 0:02:01]}  Nxc8 {[%clk 0:02:30]} 20. a4 {[%clk 0:01:59]}  Bb4 {[%clk 0:02:28]} 21. Bd3 {[%clk 0:01:47]}  Ne7 {[%clk 0:02:27]} 22. h3 {[%clk 0:01:45]}  Bf5 {[%clk 0:02:26]} 23. Bxf5 {[%clk 0:01:30]}  Nxf5 {[%clk 0:02:25]} 24. Qc2 {[%clk 0:01:25]}  Qd8 {[%clk 0:02:23]} 25. g4 {[%clk 0:01:22]}  Nxe3 {[%clk 0:02:20]} 26. fxe3 {[%clk 0:01:23]}  Nb6 {[%clk 0:02:20]} 27. Kg2 {[%clk 0:01:12]}  Qc8 {[%clk 0:02:18]} 28. Qxc8+ {[%clk 0:01:11]}  Nxc8 {[%clk 0:02:18]} 29. Nb3 {[%clk 0:00:57]}  Nb6 {[%clk 0:02:15]} 30. Nc5 {[%clk 0:00:57]}  Bxc5 {[%clk 0:02:09]} 31. dxc5 {[%clk 0:00:56]}  Nxa4 {[%clk 0:02:09]} 32. c6 {[%clk 0:00:53]}  bxc6 {[%clk 0:02:09]} 33. bxc6 {[%clk 0:00:53]}  Kf8 {[%clk 0:02:07]} 34. Nd4 {[%clk 0:00:49]}  Nb6 {[%clk 0:01:58]} 35. Nb5 {[%clk 0:00:49]}  Ke7 {[%clk 0:01:55]} 36. Kf2 {[%clk 0:00:48]}  f6 {[%clk 0:01:50]} 37. exf6+ {[%clk 0:00:46]}  gxf6 {[%clk 0:01:49]} 38. Ke2 {[%clk 0:00:46]}  Nc4 {[%clk 0:01:42]} 39. Kd3 {[%clk 0:00:42]}  a4 {[%clk 0:01:41]} 40. Kc3 {[%clk 0:00:27]}  Nxe3 {[%clk 0:01:35]} 41. Kb4 {[%clk 0:00:26]}  Nc4 {[%clk 0:01:24]} 42. Kxa4 {[%clk 0:00:25]}  Ne5 {[%clk 0:01:24]} 43. Nd4 {[%clk 0:00:19]}  Kd6 {[%clk 0:01:23]} 44. c7 {[%clk 0:00:19]}  Kxc7 {[%clk 0:01:20]} 45. Nxe6+ {[%clk 0:00:18]}  Kd6 {[%clk 0:01:19]} 46. Nd4 {[%clk 0:00:15]}  Nc6 {[%clk 0:01:16]} 47. Nf5+ {[%clk 0:00:14]}  Ke5 {[%clk 0:01:15]} 48. Kb3 {[%clk 0:00:13]}  Nd4+ {[%clk 0:01:11]} 49. Nxd4 {[%clk 0:00:11]}  Kxd4 {[%clk 0:01:11]} 50. Kc2 {[%clk 0:00:12]}  Ke3 {[%clk 0:01:11]} 51. Kc3 {[%clk 0:00:09]}  d4+ {[%clk 0:01:11]} 0-1

[Event "January 9 Late 2024"]
[Site "https://www.chess.com"]
[Date "2024.01.09"]
[Round "7"]
[White "Hoffmann, Asa"]
[Black "Curtis, John"]
[Result "1-0"]
[Board "155"]
[TimeControl "180+1"]
[WhiteFideId "2001470"]
[BlackFideId "3200256"]
[WhiteElo "2374"]
[BlackElo "2129"]
[WhiteTeam "USA"]
[BlackTeam "AUS"]
[WhiteClock "0:00:45"]
[BlackClock "0:00:00"]

1. d4 {[%clk 0:02:58]}  Nf6 {[%clk 0:02:58]} 2. Bg5 {[%clk 0:02:56]}  e6 {[%clk 0:02:57]} 3. Nd2 {[%clk 0:02:56]}  h6 {[%clk 0:02:52]} 4. Bh4 {[%clk 0:02:55]}  d5 {[%clk 0:02:49]} 5. e3 {[%clk 0:02:55]}  c5 {[%clk 0:02:48]} 6. c3 {[%clk 0:02:55]}  Nc6 {[%clk 0:02:47]} 7. f4 {[%clk 0:02:55]}  Qc7 {[%clk 0:02:46]} 8. Bd3 {[%clk 0:02:54]}  cxd4 {[%clk 0:02:45]} 9. cxd4 {[%clk 0:02:53]}  Bd7 {[%clk 0:02:44]} 10. a3 {[%clk 0:02:52]}  Be7 {[%clk 0:02:39]} 11. Ngf3 {[%clk 0:02:52]}  Ng4 {[%clk 0:02:34]} 12. Bxe7 {[%clk 0:02:51]}  Nxe7 {[%clk 0:02:34]} 13. Qe2 {[%clk 0:02:46]}  f5 {[%clk 0:02:19]} 14. h3 {[%clk 0:02:45]}  Nf6 {[%clk 0:02:19]} 15. g4 {[%clk 0:02:45]}  g6 {[%clk 0:02:04]} 16. Ne5 {[%clk 0:02:44]}  h5 {[%clk 0:01:45]} 17. g5 {[%clk 0:02:39]}  Ne4 {[%clk 0:01:45]} 18. Bxe4 {[%clk 0:02:38]}  fxe4 {[%clk 0:01:42]} 19. Kf2 {[%clk 0:02:31]}  Qb6 {[%clk 0:01:31]} 20. b4 {[%clk 0:02:29]}  Bb5 {[%clk 0:01:30]} 21. Qd1 {[%clk 0:02:26]}  O-O {[%clk 0:01:29]} 22. Rc1 {[%clk 0:02:24]}  Rfc8 {[%clk 0:01:25]} 23. Rc5 {[%clk 0:02:14]}  Be8 {[%clk 0:01:24]} 24. Qc2 {[%clk 0:02:12]}  Qd8 {[%clk 0:01:23]} 25. Rc1 {[%clk 0:02:11]}  b6 {[%clk 0:01:18]} 26. Rxc8 {[%clk 0:02:08]}  Rxc8 {[%clk 0:01:17]} 27. Qb2 {[%clk 0:02:08]}  Rc7 {[%clk 0:01:11]} 28. Nb3 {[%clk 0:02:03]}  Qc8 {[%clk 0:01:01]} 29. Rxc7 {[%clk 0:01:57]}  Qxc7 {[%clk 0:01:01]} 30. Qc1 {[%clk 0:01:55]}  Qxc1 {[%clk 0:01:01]} 31. Nxc1 {[%clk 0:01:55]}  Nc6 {[%clk 0:00:59]} 32. Ke2 {[%clk 0:01:44]}  Kf8 {[%clk 0:00:57]} 33. Kd2 {[%clk 0:01:43]}  Ke7 {[%clk 0:00:56]} 34. Kc3 {[%clk 0:01:43]}  Kd8 {[%clk 0:00:50]} 35. Nb3 {[%clk 0:01:38]}  Kc7 {[%clk 0:00:50]} 36. Nc1 {[%clk 0:01:30]}  Ne7 {[%clk 0:00:48]} 37. Kd2 {[%clk 0:01:27]}  Nf5 {[%clk 0:00:48]} 38. Ne2 {[%clk 0:01:25]}  a5 {[%clk 0:00:48]} 39. Nc3 {[%clk 0:01:19]}  Kb7 {[%clk 0:00:40]} 40. Ke2 {[%clk 0:01:08]}  axb4 {[%clk 0:00:36]} 41. axb4 {[%clk 0:01:07]}  b5 {[%clk 0:00:37]} 42. Nb1 {[%clk 0:01:03]}  Kb6 {[%clk 0:00:37]} 43. Nd2 {[%clk 0:01:03]}  Ne7 {[%clk 0:00:31]} 44. Nb3 {[%clk 0:01:02]}  Nc6 {[%clk 0:00:22]} 45. Nc5 {[%clk 0:01:02]}  Nxb4 {[%clk 0:00:21]} 46. Nxe6 {[%clk 0:01:01]}  Nc6 {[%clk 0:00:19]} 47. Ng7 {[%clk 0:00:59]}  Nxe5 {[%clk 0:00:09]} 48. fxe5 {[%clk 0:00:59]}  Bc6 {[%clk 0:00:09]} 49. e6 {[%clk 0:00:59]}  b4 {[%clk 0:00:08]} 50. e7 {[%clk 0:00:59]}  Ka5 {[%clk 0:00:08]} 51. Kd2 {[%clk 0:00:59]}  Ka4 {[%clk 0:00:08]} 52. Kc2 {[%clk 0:00:58]}  Ka3 {[%clk 0:00:09]} 53. Kb1 {[%clk 0:00:58]}  Bb5 {[%clk 0:00:07]} 54. e8=Q {[%clk 0:00:56]}  Bd3+ {[%clk 0:00:05]} 55. Kc1 {[%clk 0:00:56]}  b3 {[%clk 0:00:05]} 56. Qb8 {[%clk 0:00:52]}  Ka2 {[%clk 0:00:04]} 57. Ne6 {[%clk 0:00:50]}  Ka3 {[%clk 0:00:03]} 58. Nf4 {[%clk 0:00:49]}  Bc4 {[%clk 0:00:03]} 59. Qb6 {[%clk 0:00:47]}  h4 {[%clk 0:00:03]} 60. Nxg6 {[%clk 0:00:47]}  b2+ {[%clk 0:00:02]} 61. Qxb2+ {[%clk 0:00:46]}  Ka4 {[%clk 0:00:03]} 62. Ne5 {[%clk 0:00:46]}  Bb5 {[%clk 0:00:01]} 63. Kd2 {[%clk 0:00:46]}  Ka5 {[%clk 0:00:00]} 64. Kc3 {[%clk 0:00:45]} 1-0